[Event "*** Titled Tuesday Blitz"]
[Site "Chess.com"]
[Date "2020.05.26"]
[Round "1"]
[White "2346PL"]
[Black "BulletMercenary"]
[Result "1-0"]
[WhiteElo "2503"]
[BlackElo "2104"]
[TimeControl "180+1"]
[EndTime "10:07:08 PDT"]
[Termination "2346PL won by resignation"]

1. d4 {[%clk 0:03:00.9]} 1... d6 {[%clk 0:02:59.3]} 2. e4 {[%clk 0:03:00.5]}
2... Nf6 {[%clk 0:02:59.4]} 3. Nc3 {[%clk 0:03:00.8]} 3... g6 {[%clk 0:02:59.3]}
4. Bg5 {[%clk 0:03:01.4]} 4... Bg7 {[%clk 0:02:59.6]} 5. e5 {[%clk 0:03:01.8]}
5... dxe5 {[%clk 0:02:59.3]} 6. dxe5 {[%clk 0:03:02]} 6... Qxd1+ {[%clk
0:02:59.8]} 7. Rxd1 {[%clk 0:03:02.4]} 7... Ng4 {[%clk 0:02:51.7]} 8. h3 {[%clk
0:03:01.9]} 8... Nxe5 {[%clk 0:02:50.9]} 9. Nd5 {[%clk 0:02:56.9]} 9... f6
{[%clk 0:02:33.4]} 10. Nxc7+ {[%clk 0:02:54.4]} 10... Kf7 {[%clk 0:02:33.2]} 11.
Bf4 {[%clk 0:02:50.1]} 11... Na6 {[%clk 0:02:22.1]} 12. Bxa6 {[%clk 0:02:45.7]}
12... bxa6 {[%clk 0:02:19.5]} 13. Nxa8 {[%clk 0:02:45.3]} 13... Bb7 {[%clk
0:02:18.6]} 14. Nc7 {[%clk 0:02:41]} 14... Bxg2 {[%clk 0:02:18.3]} 15. Rh2
{[%clk 0:02:41.4]} 15... Bb7 {[%clk 0:02:06]} 16. Bxe5 {[%clk 0:02:40.9]} 16...
fxe5 {[%clk 0:02:05.9]} 17. Nd5 {[%clk 0:02:38.8]} 17... e4 {[%clk 0:01:58.9]}
18. b3 {[%clk 0:02:20.4]} 18... Be5 {[%clk 0:01:44.4]} 19. Rh1 {[%clk
0:02:18.4]} 19... Rd8 {[%clk 0:01:38.8]} 20. Ne3 {[%clk 0:02:15.4]} 20... Bc3+
{[%clk 0:01:26.3]} 21. Kf1 {[%clk 0:02:08.8]} 21... Rf8 {[%clk 0:01:26]} 22. Ne2
{[%clk 0:02:03.3]} 22... Be5 {[%clk 0:01:25.6]} 23. c4 {[%clk 0:01:57.6]} 23...
Bc8 {[%clk 0:01:16.1]} 24. Kg2 {[%clk 0:01:57.1]} 24... h5 {[%clk 0:01:14]} 25.
Rd5 {[%clk 0:01:40.9]} 25... Bd6 {[%clk 0:01:10.4]} 26. c5 {[%clk 0:01:39.6]}
26... Bc7 {[%clk 0:01:09.7]} 27. Rhd1 {[%clk 0:01:33.6]} 27... Be6 {[%clk
0:01:06.6]} 28. R5d2 {[%clk 0:01:31.7]} 28... g5 {[%clk 0:01:03.2]} 29. Nd4
{[%clk 0:01:30.6]} 29... Bc8 {[%clk 0:01:03]} 30. Nc6 {[%clk 0:01:21.3]} 30...
g4 {[%clk 0:00:49.8]} 31. hxg4 {[%clk 0:01:18]} 31... Rg8 {[%clk 0:00:49.9]} 32.
Rd7 {[%clk 0:01:15.1]} 32... Bf4 {[%clk 0:00:36.2]} 33. Nxe7 {[%clk 0:01:00.5]}
33... Bxd7 {[%clk 0:00:32.6]} 34. Nxg8 {[%clk 0:00:55.4]} 34... Be6 {[%clk
0:00:26.2]} 35. Rd8 {[%clk 0:00:53]} 35... hxg4 {[%clk 0:00:25.6]} 36. Ra8
{[%clk 0:00:43.8]} 36... Kg7 {[%clk 0:00:24.1]} 37. Ne7 {[%clk 0:00:37.4]} 37...
Kf6 {[%clk 0:00:24.1]} 38. Nc6 {[%clk 0:00:37.3]} 38... g3 {[%clk 0:00:21.9]}
39. Nd4 {[%clk 0:00:32.8]} 39... Bh3+ {[%clk 0:00:18.4]} 40. Kg1 {[%clk
0:00:31.8]} 40... gxf2+ {[%clk 0:00:13.6]} 41. Kxf2 {[%clk 0:00:31.2]} 41... Bg5
{[%clk 0:00:13.9]} 42. Rxa7 {[%clk 0:00:29]} 1-0

[Event "*** Titled Tuesday Blitz"]
[Site "Chess.com"]
[Date "2020.05.26"]
[Round "1"]
[White "IAgrest"]
[Black "Tayson_7"]
[Result "0-1"]
[WhiteElo "2274"]
[BlackElo "2611"]
[TimeControl "180+1"]
[EndTime "10:07:09 PDT"]
[Termination "Tayson_7 won by resignation"]

1. e4 {[%clk 0:03:00.9]} 1... e5 {[%clk 0:02:59.1]} 2. Nf3 {[%clk 0:03:00]} 2...
Nc6 {[%clk 0:02:59.3]} 3. Bb5 {[%clk 0:02:59.7]} 3... a6 {[%clk 0:02:59.3]} 4.
Ba4 {[%clk 0:02:59.3]} 4... Nf6 {[%clk 0:02:59.9]} 5. O-O {[%clk 0:02:55.5]}
5... Be7 {[%clk 0:03:00.1]} 6. Re1 {[%clk 0:02:54.6]} 6... b5 {[%clk 0:03:00]}
7. Bb3 {[%clk 0:02:52.7]} 7... d6 {[%clk 0:03:00.5]} 8. c3 {[%clk 0:02:51.1]}
8... O-O {[%clk 0:03:00.4]} 9. h3 {[%clk 0:02:48.7]} 9... Bb7 {[%clk 0:03:00.1]}
10. d3 {[%clk 0:02:44.2]} 10... Nb8 {[%clk 0:02:59]} 11. Nbd2 {[%clk 0:02:42.5]}
11... Nbd7 {[%clk 0:02:59]} 12. Nf1 {[%clk 0:02:41.7]} 12... h6 {[%clk
0:02:57.7]} 13. Ng3 {[%clk 0:02:38.2]} 13... Re8 {[%clk 0:02:54.6]} 14. Nf5
{[%clk 0:02:32.7]} 14... Bf8 {[%clk 0:02:54.4]} 15. Nh2 {[%clk 0:01:58.8]} 15...
Nc5 {[%clk 0:02:51.8]} 16. Bc2 {[%clk 0:01:57.8]} 16... d5 {[%clk 0:02:51.1]}
17. Qf3 {[%clk 0:01:42.4]} 17... dxe4 {[%clk 0:02:23.3]} 18. dxe4 {[%clk
0:01:40.8]} 18... Bxe4 {[%clk 0:02:23.7]} 19. Bxe4 {[%clk 0:01:36]} 19... Ncxe4
{[%clk 0:02:23.9]} 20. Rxe4 {[%clk 0:01:20.2]} 20... Nxe4 {[%clk 0:02:23.7]} 21.
Qxe4 {[%clk 0:01:21.1]} 21... Qd1+ {[%clk 0:02:21.7]} 22. Nf1 {[%clk 0:01:21.2]}
22... Rad8 {[%clk 0:02:22]} 23. Rb1 {[%clk 0:01:14.3]} 23... Qd5 {[%clk
0:02:11]} 24. Qg4 {[%clk 0:00:59.3]} 24... Kh7 {[%clk 0:02:05]} 25. Be3 {[%clk
0:00:42.7]} 25... Qxa2 {[%clk 0:02:02.6]} 26. Re1 {[%clk 0:00:30.6]} 26... Qe6
{[%clk 0:02:00.5]} 27. Qe4 {[%clk 0:00:25.7]} 27... Qd5 {[%clk 0:01:58.1]} 28.
Qg4 {[%clk 0:00:25.4]} 28... Qd7 {[%clk 0:01:56.6]} 29. Qe4 {[%clk 0:00:23.8]}
29... Qd3 {[%clk 0:01:43.9]} 30. Qg4 {[%clk 0:00:23.4]} 30... Re6 {[%clk
0:01:44.5]} 31. N1g3 {[%clk 0:00:20.2]} 31... Rg6 {[%clk 0:01:40.2]} 32. Qh4
{[%clk 0:00:19.3]} 32... a5 {[%clk 0:01:34.8]} 33. Ne7 {[%clk 0:00:17.3]} 33...
Re6 {[%clk 0:01:18.7]} 34. Nef5 {[%clk 0:00:16.7]} 34... Qd7 {[%clk 0:01:07.2]}
35. Qe4 {[%clk 0:00:15.8]} 35... Qc6 {[%clk 0:01:04]} 36. Qg4 {[%clk 0:00:15.5]}
36... Rg6 {[%clk 0:01:02.6]} 37. Qh4 {[%clk 0:00:15.6]} 37... Rd7 {[%clk
0:01:03]} 38. Kh2 {[%clk 0:00:10.4]} 38... a4 {[%clk 0:01:02.5]} 39. f3 {[%clk
0:00:09.9]} 39... a3 {[%clk 0:00:58.1]} 40. bxa3 {[%clk 0:00:09.4]} 40... Qxc3
{[%clk 0:00:57.4]} 41. Ne4 {[%clk 0:00:09.6]} 41... Qc6 {[%clk 0:00:49.3]} 42.
Ng5+ {[%clk 0:00:06]} 42... Kg8 {[%clk 0:00:47.3]} 43. Ne4 {[%clk 0:00:06]}
43... Qe6 {[%clk 0:00:47.8]} 44. Rg1 {[%clk 0:00:05.1]} 44... Qxf5 {[%clk
0:00:47.5]} 0-1

[Event "*** Titled Tuesday Blitz"]
[Site "Chess.com"]
[Date "2020.05.26"]
[Round "1"]
[White "m-garcett"]
[Black "PlotnikovPavel"]
[Result "0-1"]
[WhiteElo "1989"]
[BlackElo "2474"]
[TimeControl "180+1"]
[EndTime "10:07:09 PDT"]
[Termination "PlotnikovPavel won on time"]

1. e4 {[%clk 0:02:58.4]} 1... e6 {[%clk 0:02:59.8]} 2. d4 {[%clk 0:02:58.1]}
2... d5 {[%clk 0:02:59.6]} 3. Nc3 {[%clk 0:02:58.6]} 3... Nf6 {[%clk 0:02:59.4]}
4. e5 {[%clk 0:02:57.7]} 4... Ng8 {[%clk 0:02:59.2]} 5. Nce2 {[%clk 0:02:56.8]}
5... c5 {[%clk 0:02:59.2]} 6. c3 {[%clk 0:02:57.3]} 6... Nc6 {[%clk 0:02:58.9]}
7. Nf3 {[%clk 0:02:56.6]} 7... Nge7 {[%clk 0:02:52.2]} 8. Nf4 {[%clk 0:02:48]}
8... Nf5 {[%clk 0:02:50.9]} 9. a3 {[%clk 0:02:44.7]} 9... cxd4 {[%clk
0:02:43.2]} 10. cxd4 {[%clk 0:02:44.1]} 10... Qb6 {[%clk 0:02:43.2]} 11. Be3
{[%clk 0:02:01.9]} 11... Qxb2 {[%clk 0:02:39.2]} 12. Bd3 {[%clk 0:02:02.1]}
12... Nxe3 {[%clk 0:02:22.8]} 13. fxe3 {[%clk 0:02:00.6]} 13... Qc3+ {[%clk
0:02:22.6]} 14. Kf2 {[%clk 0:01:57.2]} 14... Be7 {[%clk 0:02:18.3]} 15. h4
{[%clk 0:01:50.8]} 15... f6 {[%clk 0:02:13]} 16. exf6 {[%clk 0:01:49.5]} 16...
Bxf6 {[%clk 0:02:13.9]} 17. Ng5 {[%clk 0:01:43.8]} 17... g6 {[%clk 0:01:50.4]}
18. Rc1 {[%clk 0:01:21.7]} 18... Qxa3 {[%clk 0:01:45.9]} 19. Ngxe6 {[%clk
0:01:18.7]} 19... Bxe6 {[%clk 0:01:41.3]} 20. Nxe6 {[%clk 0:01:18.3]} 20... Qe7
{[%clk 0:01:37.7]} 21. Qg4 {[%clk 0:01:11.7]} 21... Kf7 {[%clk 0:01:25.1]} 22.
Ng5+ {[%clk 0:01:10.8]} 22... Bxg5 {[%clk 0:01:20.8]} 23. hxg5 {[%clk
0:01:10.6]} 23... Rae8 {[%clk 0:01:13]} 24. Rhe1 {[%clk 0:01:03.7]} 24... Rhf8
{[%clk 0:01:11.9]} 25. Kg1 {[%clk 0:01:03.2]} 25... Kg8 {[%clk 0:01:10.5]} 26.
e4 {[%clk 0:01:00.4]} 26... dxe4 {[%clk 0:00:48.7]} 27. Rxe4 {[%clk 0:00:59.6]}
27... Qd6 {[%clk 0:00:47.3]} 28. Rce1 {[%clk 0:00:51.1]} 28... Rxe4 {[%clk
0:00:46.9]} 29. Rxe4 {[%clk 0:00:42.9]} 29... Qd5 {[%clk 0:00:38.2]} 30. Qe6+
{[%clk 0:00:19.5]} 30... Qxe6 {[%clk 0:00:37.7]} 31. Rxe6 {[%clk 0:00:18.9]}
31... Nxd4 {[%clk 0:00:37.9]} 32. Re7 {[%clk 0:00:18.8]} 32... b5 {[%clk
0:00:27.3]} 33. Rxa7 {[%clk 0:00:18.6]} 33... Rf7 {[%clk 0:00:25.9]} 34. Rb7
{[%clk 0:00:17.6]} 34... Rxb7 {[%clk 0:00:25.4]} 0-1

[Event "*** Titled Tuesday Blitz"]
[Site "Chess.com"]
[Date "2020.05.26"]
[Round "1"]
[White "amintabatabaei"]
[Black "Godzillator"]
[Result "1-0"]
[WhiteElo "2920"]
[BlackElo "2434"]
[TimeControl "180+1"]
[EndTime "10:07:12 PDT"]
[Termination "amintabatabaei won by checkmate"]

1. e4 {[%clk 0:03:00.9]} 1... c6 {[%clk 0:02:59.7]} 2. Nc3 {[%clk 0:02:58.7]}
2... d5 {[%clk 0:03:00.6]} 3. Nf3 {[%clk 0:02:59.6]} 3... Bg4 {[%clk 0:02:59.9]}
4. h3 {[%clk 0:02:59.7]} 4... Bxf3 {[%clk 0:03:00.1]} 5. Qxf3 {[%clk 0:03:00.6]}
5... Nf6 {[%clk 0:03:00.4]} 6. Be2 {[%clk 0:03:01.3]} 6... e6 {[%clk 0:02:59.9]}
7. O-O {[%clk 0:03:01.4]} 7... Bb4 {[%clk 0:02:59.8]} 8. e5 {[%clk 0:02:41.9]}
8... Bxc3 {[%clk 0:02:56.3]} 9. bxc3 {[%clk 0:02:36]} 9... Nfd7 {[%clk
0:02:56.3]} 10. d4 {[%clk 0:02:31.1]} 10... c5 {[%clk 0:02:48]} 11. Qg3 {[%clk
0:02:31]} 11... g6 {[%clk 0:02:43.6]} 12. Rb1 {[%clk 0:02:30.9]} 12... b6 {[%clk
0:02:40.2]} 13. c4 {[%clk 0:02:18.3]} 13... Nc6 {[%clk 0:02:30.7]} 14. dxc5
{[%clk 0:01:41.8]} 14... bxc5 {[%clk 0:02:24.5]} 15. cxd5 {[%clk 0:01:41.1]}
15... Nd4 {[%clk 0:02:24.6]} 16. Bd3 {[%clk 0:01:27.5]} 16... exd5 {[%clk
0:02:22.3]} 17. c3 {[%clk 0:01:26.2]} 17... Ne6 {[%clk 0:02:21.6]} 18. f4 {[%clk
0:01:26.6]} 18... c4 {[%clk 0:02:13]} 19. Bc2 {[%clk 0:01:24.2]} 19... Qc7
{[%clk 0:01:22]} 20. Ba3 {[%clk 0:01:16.4]} 20... Nec5 {[%clk 0:01:17.3]} 21. f5
{[%clk 0:01:13]} 21... Rc8 {[%clk 0:01:11.2]} 22. fxg6 {[%clk 0:01:07.6]} 22...
hxg6 {[%clk 0:01:08.7]} 23. Bxg6 {[%clk 0:00:34.6]} 23... Nxe5 {[%clk
0:01:02.5]} 24. Bf5 {[%clk 0:00:21]} 24... Ne4 {[%clk 0:00:57.2]} 25. Bxe4
{[%clk 0:00:18.4]} 25... dxe4 {[%clk 0:00:57]} 26. Rf4 {[%clk 0:00:04.6]} 26...
Qc6 {[%clk 0:00:37]} 27. Re1 {[%clk 0:00:04.3]} 27... Qg6 {[%clk 0:00:29.9]} 28.
Qxg6 {[%clk 0:00:02.3]} 28... Nxg6 {[%clk 0:00:30]} 29. Rfxe4+ {[%clk
0:00:03.2]} 29... Kd7 {[%clk 0:00:29.5]} 30. Rd1+ {[%clk 0:00:03.7]} 30... Kc6
{[%clk 0:00:29.5]} 31. Rxc4+ {[%clk 0:00:04.4]} 31... Kb5 {[%clk 0:00:28.8]} 32.
Rb4+ {[%clk 0:00:05]} 32... Ka5 {[%clk 0:00:27.4]} 33. Rd5+ {[%clk 0:00:05.1]}
33... Ka6 {[%clk 0:00:26.7]} 34. Rd6+ {[%clk 0:00:05.8]} 34... Ka5 {[%clk
0:00:26.3]} 35. Rd5+ {[%clk 0:00:06.2]} 35... Ka6 {[%clk 0:00:26.6]} 36. Rd6+
{[%clk 0:00:06.1]} 36... Ka5 {[%clk 0:00:26.9]} 37. c4 {[%clk 0:00:06.4]} 37...
Rhd8 {[%clk 0:00:23.4]} 38. Rb5+ {[%clk 0:00:06.6]} 38... Ka4 {[%clk 0:00:23.6]}
39. Ra6# {[%clk 0:00:07.5]} 1-0

[Event "*** Titled Tuesday Blitz"]
[Site "Chess.com"]
[Date "2020.05.26"]
[Round "1"]
[White "enriquetejedor"]
[Black "aisha_zakirova"]
[Result "1-0"]
[WhiteElo "2465"]
[BlackElo "1827"]
[TimeControl "180+1"]
[EndTime "10:07:15 PDT"]
[Termination "enriquetejedor won by resignation"]

1. e4 {[%clk 0:01:53.4]} 1... c5 {[%clk 0:02:59.2]} 2. Nc3 {[%clk 0:01:40.6]}
2... d6 {[%clk 0:02:56.1]} 3. g3 {[%clk 0:01:41.5]} 3... Nc6 {[%clk 0:02:54.7]}
4. Bg2 {[%clk 0:01:32]} 4... g6 {[%clk 0:02:53.9]} 5. d3 {[%clk 0:01:17.1]} 5...
Bg7 {[%clk 0:02:53.7]} 6. Be3 {[%clk 0:01:17.5]} 6... Nf6 {[%clk 0:02:52.9]} 7.
h3 {[%clk 0:01:16.5]} 7... O-O {[%clk 0:02:50.8]} 8. f4 {[%clk 0:01:04.5]} 8...
e5 {[%clk 0:02:48.8]} 9. Nge2 {[%clk 0:00:55.5]} 9... Bd7 {[%clk 0:02:44.6]} 10.
O-O {[%clk 0:00:51.9]} 10... Ne8 {[%clk 0:02:40]} 11. f5 {[%clk 0:00:47.6]}
11... Nd4 {[%clk 0:02:35.3]} 12. g4 {[%clk 0:00:44.7]} 12... gxf5 {[%clk
0:02:16.7]} 13. exf5 {[%clk 0:00:36.4]} 13... Kh8 {[%clk 0:02:12.3]} 14. Ng3
{[%clk 0:00:21.9]} 14... Bc6 {[%clk 0:02:05.9]} 15. Nd5 {[%clk 0:00:19.4]} 15...
Qh4 {[%clk 0:02:00]} 16. Kh2 {[%clk 0:00:16.2]} 16... Bxd5 {[%clk 0:01:52.9]}
17. Bxd5 {[%clk 0:00:14.6]} 17... Nf6 {[%clk 0:01:52.3]} 18. Bf3 {[%clk
0:00:10.5]} 18... Nxf3+ {[%clk 0:01:45.1]} 19. Qxf3 {[%clk 0:00:11.4]} 19... d5
{[%clk 0:01:42.9]} 20. Bxc5 {[%clk 0:00:10.3]} 20... Rfc8 {[%clk 0:01:37.5]} 21.
Bf2 {[%clk 0:00:05.4]} 21... Qh6 {[%clk 0:01:32]} 22. Rac1 {[%clk 0:00:04.1]}
22... Qd2 {[%clk 0:01:30.3]} 23. Qe2 {[%clk 0:00:03.3]} 23... Qf4 {[%clk
0:01:26.3]} 24. Kg2 {[%clk 0:00:02.8]} 24... e4 {[%clk 0:01:23.9]} 25. Be3
{[%clk 0:00:02.5]} 25... Qe5 {[%clk 0:01:22.5]} 26. d4 {[%clk 0:00:03]} 26...
Qd6 {[%clk 0:01:21.2]} 27. g5 {[%clk 0:00:03.5]} 27... Nd7 {[%clk 0:01:14]} 28.
f6 {[%clk 0:00:03.9]} 28... Bxf6 {[%clk 0:01:04.1]} 29. gxf6 {[%clk 0:00:03.1]}
29... Rg8 {[%clk 0:01:04.1]} 30. Rf4 {[%clk 0:00:03.2]} 30... Nxf6 {[%clk
0:01:02.2]} 31. Rcf1 {[%clk 0:00:02.4]} 31... Nh5 {[%clk 0:00:57.2]} 32. Qxh5
{[%clk 0:00:01.8]} 32... Rxg3+ {[%clk 0:00:54.1]} 33. Kxg3 {[%clk 0:00:01.8]}
33... Rg8+ {[%clk 0:00:54.2]} 34. Kh2 {[%clk 0:00:02.3]} 34... a5 {[%clk
0:00:46.9]} 35. Qh4 {[%clk 0:00:02.7]} 35... Qg6 {[%clk 0:00:44.7]} 36. Qf6+
{[%clk 0:00:02.9]} 36... Qxf6 {[%clk 0:00:44.3]} 37. Rxf6 {[%clk 0:00:03.8]}
37... a4 {[%clk 0:00:43.4]} 38. Rxf7 {[%clk 0:00:04]} 38... b5 {[%clk
0:00:42.1]} 39. Bf4 {[%clk 0:00:04.2]} 39... b4 {[%clk 0:00:39.9]} 40. Be5+
{[%clk 0:00:05.1]} 1-0

[Event "*** Titled Tuesday Blitz"]
[Site "Chess.com"]
[Date "2020.05.26"]
[Round "1"]
[White "Sanan_Sjugirov"]
[Black "MergenKakabaev"]
[Result "1-0"]
[WhiteElo "2870"]
[BlackElo "2422"]
[TimeControl "180+1"]
[EndTime "10:07:16 PDT"]
[Termination "Sanan_Sjugirov won on time"]

1. d4 {[%clk 0:03:00.9]} 1... d5 {[%clk 0:02:57.3]} 2. Bf4 {[%clk 0:02:59.5]}
2... Nf6 {[%clk 0:02:56.4]} 3. e3 {[%clk 0:02:59.4]} 3... c5 {[%clk 0:02:55.6]}
4. Nf3 {[%clk 0:02:56.2]} 4... Nc6 {[%clk 0:02:50.1]} 5. Nbd2 {[%clk 0:02:38.3]}
5... Qb6 {[%clk 0:02:44.6]} 6. dxc5 {[%clk 0:01:50.5]} 6... Qxb2 {[%clk
0:02:37.7]} 7. Rb1 {[%clk 0:01:50]} 7... Qc3 {[%clk 0:02:28.7]} 8. Bb5 {[%clk
0:01:47.1]} 8... Bd7 {[%clk 0:02:21.6]} 9. O-O {[%clk 0:01:44]} 9... Qxc5 {[%clk
0:02:19.6]} 10. c4 {[%clk 0:01:43.3]} 10... e6 {[%clk 0:02:05.6]} 11. cxd5
{[%clk 0:01:26.1]} 11... exd5 {[%clk 0:02:05.4]} 12. Bd3 {[%clk 0:01:08]} 12...
b6 {[%clk 0:01:51.4]} 13. Nb3 {[%clk 0:01:01.2]} 13... Qa3 {[%clk 0:01:38.9]}
14. Nbd4 {[%clk 0:00:58.8]} 14... Nxd4 {[%clk 0:01:32.6]} 15. Nxd4 {[%clk
0:00:59.7]} 15... Be7 {[%clk 0:01:30.5]} 16. Nb5 {[%clk 0:00:57.9]} 16... Bxb5
{[%clk 0:01:15.5]} 17. Bxb5+ {[%clk 0:00:58.8]} 17... Kf8 {[%clk 0:01:15.6]} 18.
Qd2 {[%clk 0:00:43.8]} 18... g6 {[%clk 0:01:03.8]} 19. Rb3 {[%clk 0:00:41.7]}
19... Qa5 {[%clk 0:00:54.6]} 20. Bh6+ {[%clk 0:00:41.4]} 20... Kg8 {[%clk
0:00:54]} 21. Qb2 {[%clk 0:00:36.5]} 21... Rd8 {[%clk 0:00:36.4]} 22. Bg5 {[%clk
0:00:17.3]} 22... d4 {[%clk 0:00:24.7]} 23. Bxf6 {[%clk 0:00:12.2]} 23... Bxf6
{[%clk 0:00:22.6]} 24. Ra3 {[%clk 0:00:12.5]} 24... dxe3 {[%clk 0:00:01.3]} 25.
Qxf6 {[%clk 0:00:12.3]} 1-0

[Event "*** Titled Tuesday Blitz"]
[Site "Chess.com"]
[Date "2020.05.26"]
[Round "1"]
[White "Gabrielian_Artur"]
[Black "WastefulJustice"]
[Result "1-0"]
[WhiteElo "2751"]
[BlackElo "2383"]
[TimeControl "180+1"]
[EndTime "10:07:16 PDT"]
[Termination "Gabrielian_Artur won by resignation"]

1. e4 {[%clk 0:03:00.6]} 1... e5 {[%clk 0:02:59.8]} 2. Nc3 {[%clk 0:02:59.8]}
2... Nf6 {[%clk 0:02:58.2]} 3. g3 {[%clk 0:02:59.4]} 3... Bc5 {[%clk 0:02:57.4]}
4. Bg2 {[%clk 0:02:59.1]} 4... Nc6 {[%clk 0:02:57.1]} 5. Nge2 {[%clk 0:02:56.5]}
5... a6 {[%clk 0:02:54.8]} 6. d3 {[%clk 0:02:55.7]} 6... d6 {[%clk 0:02:54.6]}
7. O-O {[%clk 0:02:54.9]} 7... O-O {[%clk 0:02:53.8]} 8. h3 {[%clk 0:02:54.8]}
8... h6 {[%clk 0:02:53.4]} 9. Kh2 {[%clk 0:02:52.8]} 9... Re8 {[%clk 0:02:31.6]}
10. f4 {[%clk 0:02:48.5]} 10... exf4 {[%clk 0:02:24.1]} 11. Nxf4 {[%clk
0:02:41.2]} 11... Nd4 {[%clk 0:02:07]} 12. Ncd5 {[%clk 0:02:12.7]} 12... Nxd5
{[%clk 0:01:46.3]} 13. Nxd5 {[%clk 0:02:12.6]} 13... c6 {[%clk 0:01:46.3]} 14.
Nf4 {[%clk 0:02:05.1]} 14... Bb6 {[%clk 0:01:39.2]} 15. c3 {[%clk 0:01:53.9]}
15... Ne6 {[%clk 0:01:38.4]} 16. Nh5 {[%clk 0:01:53.5]} 16... Qe7 {[%clk
0:01:07.6]} 17. h4 {[%clk 0:01:31.4]} 17... Nf8 {[%clk 0:01:01.4]} 18. Qf3
{[%clk 0:00:56.4]} 18... Ng6 {[%clk 0:00:59.1]} 19. d4 {[%clk 0:00:53.8]} 19...
Rf8 {[%clk 0:00:35.8]} 20. Bd2 {[%clk 0:00:39.8]} 20... Bd7 {[%clk 0:00:22.2]}
21. Rae1 {[%clk 0:00:38.9]} 21... Rae8 {[%clk 0:00:21.9]} 22. Kh1 {[%clk
0:00:22.9]} 22... c5 {[%clk 0:00:20]} 23. Be3 {[%clk 0:00:21.8]} 23... Bb5
{[%clk 0:00:18.3]} 24. Rf2 {[%clk 0:00:21.5]} 24... Bd3 {[%clk 0:00:17.5]} 25.
Bxh6 {[%clk 0:00:20.3]} 25... Bxe4 {[%clk 0:00:11.2]} 26. Rxe4 {[%clk
0:00:19.8]} 26... Qxe4 {[%clk 0:00:11]} 27. Qxe4 {[%clk 0:00:19.7]} 27... Rxe4
{[%clk 0:00:10.9]} 28. Bxe4 {[%clk 0:00:19.1]} 28... gxh6 {[%clk 0:00:11.1]} 29.
Nf6+ {[%clk 0:00:18.2]} 29... Kg7 {[%clk 0:00:10.7]} 30. Nd7 {[%clk 0:00:18.4]}
30... Re8 {[%clk 0:00:07.9]} 31. Bxg6 {[%clk 0:00:18.5]} 31... fxg6 {[%clk
0:00:03.7]} 32. Nxb6 {[%clk 0:00:17.8]} 1-0

[Event "*** Titled Tuesday Blitz"]
[Site "Chess.com"]
[Date "2020.05.26"]
[Round "1"]
[White "fabianvivasz"]
[Black "Dinamo81"]
[Result "0-1"]
[WhiteElo "2283"]
[BlackElo "2615"]
[TimeControl "180+1"]
[EndTime "10:07:17 PDT"]
[Termination "Dinamo81 won on time"]

1. e4 {[%clk 0:02:49.9]} 1... e6 {[%clk 0:02:56.8]} 2. d4 {[%clk 0:02:48.8]}
2... d5 {[%clk 0:02:54.6]} 3. Nd2 {[%clk 0:02:49.3]} 3... c5 {[%clk 0:02:53.7]}
4. Ngf3 {[%clk 0:02:48.7]} 4... Nc6 {[%clk 0:02:52.3]} 5. exd5 {[%clk
0:02:47.2]} 5... exd5 {[%clk 0:02:51.5]} 6. Bb5 {[%clk 0:02:44.4]} 6... cxd4
{[%clk 0:02:50.4]} 7. O-O {[%clk 0:02:42]} 7... Bd6 {[%clk 0:02:49.8]} 8. Re1+
{[%clk 0:02:31.3]} 8... Ne7 {[%clk 0:02:50.2]} 9. Nxd4 {[%clk 0:02:28.5]} 9...
O-O {[%clk 0:02:49.3]} 10. N2b3 {[%clk 0:02:11.1]} 10... Ne5 {[%clk 0:02:32]}
11. Bf4 {[%clk 0:02:03.3]} 11... N7g6 {[%clk 0:02:30.8]} 12. Bg3 {[%clk
0:02:00.1]} 12... Bg4 {[%clk 0:02:16]} 13. Be2 {[%clk 0:01:54.3]} 13... Bxe2
{[%clk 0:02:11.8]} 14. Nxe2 {[%clk 0:01:44.4]} 14... Ng4 {[%clk 0:01:47.9]} 15.
Nc3 {[%clk 0:01:22.1]} 15... Bxg3 {[%clk 0:01:44.3]} 16. hxg3 {[%clk 0:00:52.1]}
16... Nf6 {[%clk 0:01:39.5]} 17. Qd4 {[%clk 0:00:50.2]} 17... Qd6 {[%clk
0:01:32]} 18. Rad1 {[%clk 0:00:46.8]} 18... Rfd8 {[%clk 0:01:30.7]} 19. Re3
{[%clk 0:00:28.4]} 19... a6 {[%clk 0:01:26.1]} 20. a4 {[%clk 0:00:26.8]} 20...
Ne7 {[%clk 0:01:25.4]} 21. Red3 {[%clk 0:00:24.1]} 21... Nc6 {[%clk 0:01:21.5]}
22. Qc5 {[%clk 0:00:21.6]} 22... Nb4 {[%clk 0:01:17.9]} 23. Qxd6 {[%clk
0:00:15.3]} 23... Rxd6 {[%clk 0:01:16.4]} 24. R3d2 {[%clk 0:00:14.5]} 24... Rc8
{[%clk 0:01:13.8]} 25. f3 {[%clk 0:00:13.4]} 25... h5 {[%clk 0:01:09.8]} 26. Nd4
{[%clk 0:00:11.6]} 26... g6 {[%clk 0:01:09.2]} 27. Nde2 {[%clk 0:00:10.8]} 27...
Kg7 {[%clk 0:00:54.3]} 28. Nf4 {[%clk 0:00:10.4]} 28... Rc4 {[%clk 0:00:50.9]}
29. Kf2 {[%clk 0:00:04.2]} 29... h4 {[%clk 0:00:50]} 30. Nfxd5 {[%clk
0:00:03.2]} 30... Nfxd5 {[%clk 0:00:47.1]} 31. Nxd5 {[%clk 0:00:02.8]} 31...
Rxd5 {[%clk 0:00:46.9]} 32. Rxd5 {[%clk 0:00:03.7]} 32... Nxd5 {[%clk
0:00:46.9]} 33. Rxd5 {[%clk 0:00:04]} 33... Rxc2+ {[%clk 0:00:47.2]} 34. Ke3
{[%clk 0:00:03.7]} 34... hxg3 {[%clk 0:00:46]} 35. Rd2 {[%clk 0:00:03.2]} 35...
Rxd2 {[%clk 0:00:30.2]} 36. Kxd2 {[%clk 0:00:04.1]} 36... Kf6 {[%clk 0:00:21.8]}
37. Ke3 {[%clk 0:00:03.5]} 37... Kf5 {[%clk 0:00:22.2]} 38. f4 {[%clk
0:00:01.2]} 38... Kg4 {[%clk 0:00:21.9]} 0-1